{"text_format":"3","workbook":"xlsx","n_sheets":4,"sheets":["Algus","Pulmaeelarve","Riided-Vastuvõtt-Muusika-Pildid","Kaunistused-Lilled-Kingid-Reis"],"not_rendered":{"charts":1,"defined_names":22},"read":"whole","date_system":"1900"}

{"sheet":"Algus","index":0,"n_rows":7,"n_cols":2,"rows_kept":7}
[null,"TEAVE SELLE MALLI KOHTA"]
[null,"Selle malli abil saate pidada arvestust pulmakulude üle."]
[null,"Saate sisestada eeldatav ja tegelik kulud kategooriate kaupa eraldi töölehtedele."]
[null,"Pulmaeelarve kokkuvõte ja diagramm koostatakse automaatselt."]
[null,"Märkus. "]
[null,"Iga töölehe veerus A on toodud lisajuhised. See tekst on tahtlikult peidetud. Teksti eemaldamiseks valige veerg A ja seejärel käsk KUSTUTA. Teksti kuvamiseks valige veerg A ja muutke seejärel fondi värvi."]
[null,"Tabelite kohta lisateabe saamiseks vajutage tabelis tõstuklahvi (SHIFT) ja seejärel klahvi F10, valige TABEL suvand ja seejärel käsk ASETEKST."]

{"sheet":"Pulmaeelarve","index":1,"n_rows":19,"n_cols":6,"rows_kept":19,"merged":[[2,2,4,5],[18,2,42,5]]}
["Sellel töölehel saate koostada pulmaeelarve. Kui sisestate Riided-Vastuvõtt-Muusika-Pildid töölehe ning Kaunistused-Lilled-Kingid-Reis töölehe tabelitesse andmed, koostatakse sellel lehel automaatselt kokkuvõte ja diagramm. Töölehe kasutamise kohta käivad kasulikud juhised leiate selle veeru lahtritest. Lahtris C1 on pulma toimumiskuupäev silt.",null,"Pulma toimumiskuupäev:"]
["Sisestage lahtrisse C2 Pulma toimumiskuupäev. Pulmadeni päevi jäänud arv arvutatakse automaatselt lahtris E2.",null,{"$f":"TODAY()+365","v":"2019-12-03"},"Päevi jäänud:",{"$f":"C2-TODAY()","v":365}]
["Lahtris C3 kuvatakse selle töölehe pealkiri. Järgmine juhis on lahtris A6.",null,"Pulmaeelarve kokkuvõte"]
[]
[]
["Eelarve Kokkuvõte tabeli (algab lahtriga C6) andmed arvutatakse automaastelt. Järgmine juhis on lahtris A19.",null,"KATEGOORIA","EELDATAV","TEGELIK","ÜLE-/ALAKULU"]
[null,null,"Rõivastus",{"$f":"Riided_Kokku_tegelik","v":{"v":9770,"d":"9,770.00"}},{"$f":"Riided_Kokku_tegelik","v":{"v":9770,"d":"9,770.00"}},{"$f":"EelarveKokkuvõte[[#This Row],[EELDATAV]]-EelarveKokkuvõte[[#This Row],[TEGELIK]]","v":{"v":0,"d":"0.00"}}]
[null,null,"Vastuvõtt",{"$f":"Vastuvõtt_Kokku_prognoos","v":{"v":1050,"d":"1,050.00"}},{"$f":"Vastuvõtt_Kokku_tegelik","v":{"v":928,"d":"928.00"}},{"$f":"EelarveKokkuvõte[[#This Row],[EELDATAV]]-EelarveKokkuvõte[[#This Row],[TEGELIK]]","v":{"v":122,"d":"122.00"}}]
[null,null,"Muusika",{"$f":"Muusika_Meelelahutus_Kokku_prognoos","v":{"v":600,"d":"600.00"}},{"$f":"Muusika_Meelelahutus_Kokku_tegelik","v":{"v":400,"d":"400.00"}},{"$f":"EelarveKokkuvõte[[#This Row],[EELDATAV]]-EelarveKokkuvõte[[#This Row],[TEGELIK]]","v":{"v":200,"d":"200.00"}}]
[null,null,"Trükkimine/printimine",{"$f":"Printimine__Kutsed_Kirjaplangid_Kokku_prognoos","v":{"v":935,"d":"935.00"}},{"$f":"Printimine__Kutsed_Kirjaplangid_Kokku_tegelik","v":{"v":870,"d":"870.00"}},{"$f":"EelarveKokkuvõte[[#This Row],[EELDATAV]]-EelarveKokkuvõte[[#This Row],[TEGELIK]]","v":{"v":65,"d":"65.00"}}]
[null,null,"Fotograafia",{"$f":"Fotograaf_Kokku_prognoos","v":{"v":1625,"d":"1,625.00"}},{"$f":"Fotograaf_Kokku_tegelik","v":{"v":1575,"d":"1,575.00"}},{"$f":"EelarveKokkuvõte[[#This Row],[EELDATAV]]-EelarveKokkuvõte[[#This Row],[TEGELIK]]","v":{"v":50,"d":"50.00"}}]
[null,null,"Kaunistused",{"$f":"Kaunistused_Kokku_prognoos","v":{"v":700,"d":"700.00"}},{"$f":"Kaunistused_Kokku_tegelik","v":{"v":720,"d":"720.00"}},{"$f":"EelarveKokkuvõte[[#This Row],[EELDATAV]]-EelarveKokkuvõte[[#This Row],[TEGELIK]]","v":{"v":-20,"d":"-20.00"}}]
[null,null,"Lilled",{"$f":"Lilled_Kokku_prognoos","v":{"v":900,"d":"900.00"}},{"$f":"Lilled_Kokku_tegelik","v":{"v":850,"d":"850.00"}},{"$f":"EelarveKokkuvõte[[#This Row],[EELDATAV]]-EelarveKokkuvõte[[#This Row],[TEGELIK]]","v":{"v":50,"d":"50.00"}}]
[null,null,"Kingitused",{"$f":"Kingid_Kokku_prognoos","v":{"v":1345,"d":"1,345.00"}},{"$f":"Kingid_Kokku_tegelik","v":{"v":1075,"d":"1,075.00"}},{"$f":"EelarveKokkuvõte[[#This Row],[EELDATAV]]-EelarveKokkuvõte[[#This Row],[TEGELIK]]","v":{"v":270,"d":"270.00"}}]
[null,null,"Reisimine",{"$f":"Reis_Transport_Kokku_prognoos","v":{"v":100,"d":"100.00"}},{"$f":"Reis_Transport_Kokku_tegelik","v":{"v":165,"d":"165.00"}},{"$f":"EelarveKokkuvõte[[#This Row],[EELDATAV]]-EelarveKokkuvõte[[#This Row],[TEGELIK]]","v":{"v":-65,"d":"-65.00"}}]
[null,null,"Muu",{"$f":"Muud_kulud_Kokku_prognoos","v":{"v":885,"d":"885.00"}},{"$f":"Muud_kulud_Kokku_tegelik","v":{"v":1021,"d":"1,021.00"}},{"$f":"EelarveKokkuvõte[[#This Row],[EELDATAV]]-EelarveKokkuvõte[[#This Row],[TEGELIK]]","v":{"v":-136,"d":"-136.00"}}]
[null,null,"Kogukulu",{"$f":"SUBTOTAL(109,EelarveKokkuvõte[EELDATAV])","v":{"v":17910,"d":"17,910.00"}},{"$f":"SUBTOTAL(109,EelarveKokkuvõte[TEGELIK])","v":{"v":17374,"d":"17,374.00"}},{"$f":"SUBTOTAL(109,EelarveKokkuvõte[ÜLE-/ALAKULU])","v":{"v":536,"d":"536.00"}}]
[]
["Lahtris C19 koostatakse automaatselt diagramm.",null,"Selles lahtris kuvatakse eri kategooria kulude osakaalu kirjeldav sektordiagramm."]

{"sheet":"Riided-Vastuvõtt-Muusika-Pildid","index":2,"n_rows":56,"n_cols":6,"rows_kept":56,"merged":[[16,1,16,4],[28,1,28,4],[29,1,29,4],[35,1,35,4],[48,1,48,4]]}
["Sisestage selle töölehe vastavatesse tabelitesse eri kategooria lõikes eeldatav ja tegelik kulud. Üle-/alakulu arvutatakse automaatselt. Paremal asuvas lahtris kuvatakse silt „Rõivastus“. Töölehe kasutamise kohta käivad kasulikud juhised leiate selle veeru lahtritest. Alustamiseks liikuge noolega alla.","Rõivastus",{"$nulls":3}," "]
[" Sisestage üksikasjad paremale jäävast lahtrist algavasse tabelisse „Rõivastus“. Järgmine juhis on lahtris A18.","KATEGOORIA","EELDATAV","TEGELIK","ÜLE-/ALAKULU"," "]
[null,"Kihlasõrmus(ed)",{"v":1500,"d":"1,500.00"},{"v":1500,"d":"1,500.00"},{"$f":"'Riided-Vastuvõtt-Muusika-Pildid'!$C3-'Riided-Vastuvõtt-Muusika-Pildid'!$D3","v":{"v":0,"d":"0.00"}}]
[null,"ABIKAASA 1 – sõrmus",{"v":2000,"d":"2,000.00"},{"v":2300,"d":"2,300.00"},{"$f":"'Riided-Vastuvõtt-Muusika-Pildid'!$C4-'Riided-Vastuvõtt-Muusika-Pildid'!$D4","v":{"v":-300,"d":"-300.00 "}}]
[null,"ABIKAASA 1 – kleit/smoking",{"v":3000,"d":"3,000.00"},{"v":2750,"d":"2,750.00"},{"$f":"'Riided-Vastuvõtt-Muusika-Pildid'!$C5-'Riided-Vastuvõtt-Muusika-Pildid'!$D5","v":{"v":250,"d":"250.00"}}]
[null,"ABIKAASA 1 – loor/peakate",{"v":500,"d":"500.00"},{"v":500,"d":"500.00"},{"$f":"'Riided-Vastuvõtt-Muusika-Pildid'!$C6-'Riided-Vastuvõtt-Muusika-Pildid'!$D6","v":{"v":0,"d":"0.00"}}]
[null,"ABIKAASA 1 – kingad",{"v":350,"d":"350.00"},{"v":300,"d":"300.00"},{"$f":"'Riided-Vastuvõtt-Muusika-Pildid'!$C7-'Riided-Vastuvõtt-Muusika-Pildid'!$D7","v":{"v":50,"d":"50.00"}}]
[null,"ABIKAASA 1 – ehted",{"v":400,"d":"400.00"},{"v":550,"d":"550.00"},{"$f":"'Riided-Vastuvõtt-Muusika-Pildid'!$C8-'Riided-Vastuvõtt-Muusika-Pildid'!$D8","v":{"v":-150,"d":"-150.00 "}}]
[null,"ABIKAASA 1 – sukad/sokid",{"v":20,"d":"20.00"},{"v":20,"d":"20.00"},{"$f":"'Riided-Vastuvõtt-Muusika-Pildid'!$C9-'Riided-Vastuvõtt-Muusika-Pildid'!$D9","v":{"v":0,"d":"0.00"}}]
[null,"ABIKAASA 2 – sõrmus",{"v":300,"d":"300.00"},{"v":250,"d":"250.00"},{"$f":"'Riided-Vastuvõtt-Muusika-Pildid'!$C10-'Riided-Vastuvõtt-Muusika-Pildid'!$D10","v":{"v":50,"d":"50.00"}}]
[null,"ABIKAASA 2 – kleit/smoking",{"v":300,"d":"300.00"},{"v":350,"d":"350.00"},{"$f":"'Riided-Vastuvõtt-Muusika-Pildid'!$C11-'Riided-Vastuvõtt-Muusika-Pildid'!$D11","v":{"v":-50,"d":"-50.00 "}}]
[null,"ABIKAASA 2 – loor/peakate",{"v":500,"d":"500.00"},{"v":500,"d":"500.00"},{"$f":"'Riided-Vastuvõtt-Muusika-Pildid'!$C12-'Riided-Vastuvõtt-Muusika-Pildid'!$D12","v":{"v":0,"d":"0.00"}}]
[null,"ABIKAASA 2 – kingad",{"v":200,"d":"200.00"},{"v":175,"d":"175.00"},{"$f":"'Riided-Vastuvõtt-Muusika-Pildid'!$C13-'Riided-Vastuvõtt-Muusika-Pildid'!$D13","v":{"v":25,"d":"25.00"}}]
[null,"ABIKAASA 2 – ehted",{"v":400,"d":"400.00"},{"v":550,"d":"550.00"},{"$f":"'Riided-Vastuvõtt-Muusika-Pildid'!$C14-'Riided-Vastuvõtt-Muusika-Pildid'!$D14","v":{"v":-150,"d":"-150.00 "}}]
[null,"ABIKAASA 2 – sukad/sokid",{"v":20,"d":"20.00"},{"v":25,"d":"25.00"},{"$f":"'Riided-Vastuvõtt-Muusika-Pildid'!$C15-'Riided-Vastuvõtt-Muusika-Pildid'!$D15","v":{"v":-5,"d":"-5.00 "}}]
[null,"Rõivastus kokku",{"$f":"SUBTOTAL(109,Rõivastus[EELDATAV])","v":{"v":9490,"d":"9,490.00"}},{"$f":"SUBTOTAL(109,Rõivastus[TEGELIK])","v":{"v":9770,"d":"9,770.00"}},{"$f":"SUBTOTAL(109,Rõivastus[ÜLE-/ALAKULU])","v":{"v":-280,"d":"-280.00 "}}]
[]
["Paremal asuvas lahtris kuvatakse silt „Vastuvõtt“.","Vastuvõtt*"]
["Sisestage paremale jäävast lahtrist algavasse tabelisse vastuvõtt (v.a kulud meelelahutusele ja kaunistustele). Järgmine juhis on lahtris A31.","KATEGOORIA","EELDATAV","TEGELIK","ÜLE-/ALAKULU"]
[null,"Ruumi-/saalitasud",{"v":200,"d":"200.00"},{"v":150,"d":"150.00"},{"$f":"'Riided-Vastuvõtt-Muusika-Pildid'!$C20-'Riided-Vastuvõtt-Muusika-Pildid'!$D20","v":{"v":50,"d":"50.00"}}]
[null,"Lauad ja toolid",{"v":100,"d":"100.00"},{"v":50,"d":"50.00"},{"$f":"'Riided-Vastuvõtt-Muusika-Pildid'!$C21-'Riided-Vastuvõtt-Muusika-Pildid'!$D21","v":{"v":50,"d":"50.00"}}]
[null,"Toit",{"v":0,"d":"0.00"},{"v":0,"d":"0.00"},{"$f":"'Riided-Vastuvõtt-Muusika-Pildid'!$C22-'Riided-Vastuvõtt-Muusika-Pildid'!$D22","v":{"v":0,"d":"0.00"}}]
[null,"Joogid",{"v":0,"d":"0.00"},{"v":0,"d":"0.00"},{"$f":"'Riided-Vastuvõtt-Muusika-Pildid'!$C23-'Riided-Vastuvõtt-Muusika-Pildid'!$D23","v":{"v":0,"d":"0.00"}}]
[null,"Laudlinad",{"v":0,"d":"0.00"},{"v":0,"d":"0.00"},{"$f":"'Riided-Vastuvõtt-Muusika-Pildid'!$C24-'Riided-Vastuvõtt-Muusika-Pildid'!$D24","v":{"v":0,"d":"0.00"}}]
[null,"Tort",{"v":700,"d":"700.00"},{"v":700,"d":"700.00"},{"$f":"'Riided-Vastuvõtt-Muusika-Pildid'!$C25-'Riided-Vastuvõtt-Muusika-Pildid'!$D25","v":{"v":0,"d":"0.00"}}]
[null,"Teened",{"v":50,"d":"50.00"},{"v":28,"d":"28.00"},{"$f":"'Riided-Vastuvõtt-Muusika-Pildid'!$C26-'Riided-Vastuvõtt-Muusika-Pildid'!$D26","v":{"v":22,"d":"22.00"}}]
[null,"Personal ja lisatasud",{"v":0,"d":"0.00"},{"v":0,"d":"0.00"},{"$f":"'Riided-Vastuvõtt-Muusika-Pildid'!$C27-'Riided-Vastuvõtt-Muusika-Pildid'!$D27","v":{"v":0,"d":"0.00"}}]
[null,"Vastuvõtukulud kokku",{"$f":"SUBTOTAL(109,Vastuvõtt[EELDATAV])","v":{"v":1050,"d":"1,050.00"}},{"$f":"SUBTOTAL(109,Vastuvõtt[TEGELIK])","v":{"v":928,"d":"928.00"}},{"$f":"SUBTOTAL(109,Vastuvõtt[ÜLE-/ALAKULU])","v":{"v":122,"d":"122.00"}}]
[null,"* Ei hõlma meelelahutuse ja kaunistustega seotud kulusid"]
[]
["Paremal asuvas lahtris kuvatakse silt „Muusika/Meelelahutus“.","Muusika/meelelahutus"]
["Sisestage üksikasjad paremale jäävast lahtrist algavasse tabelisse „Muusika“. Järgmine juhis on lahtris A37.","KATEGOORIA","EELDATAV","TEGELIK","ÜLE-/ALAKULU"]
[null,"Tseremooniamuusikud",{"v":400,"d":"400.00"},{"v":400,"d":"400.00"},{"$f":"'Riided-Vastuvõtt-Muusika-Pildid'!$C33-'Riided-Vastuvõtt-Muusika-Pildid'!$D33","v":{"v":0,"d":"0.00"}}]
[null,"Bänd/DJ vastuvõtuks",{"v":200,"d":"200.00"},{"v":0,"d":"0.00"},{"$f":"'Riided-Vastuvõtt-Muusika-Pildid'!$C34-'Riided-Vastuvõtt-Muusika-Pildid'!$D34","v":{"v":200,"d":"200.00"}}]
[null,"Muusika-/meelelahutusekulud kokku",{"$f":"SUBTOTAL(109,Muusika[EELDATAV])","v":{"v":600,"d":"600.00"}},{"$f":"SUBTOTAL(109,Muusika[TEGELIK])","v":{"v":400,"d":"400.00"}},{"$f":"SUBTOTAL(109,Muusika[ÜLE-/ALAKULU])","v":{"v":200,"d":"200.00"}}]
[]
["Paremal asuvas lahtris kuvatakse silt „Printimine/Kirjatarbed“.","Printimine/kirjatarbed"]
["Sisestage üksikasjad parempoolsest lahtrist algavasse tabelisse „Printimine“. Järgmine juhis on lahtris A50.","KATEGOORIA","EELDATAV","TEGELIK","ÜLE-/ALAKULU"]
[null,"Kutsed",{"v":500,"d":"500.00"},{"v":450,"d":"450.00"},{"$f":"'Riided-Vastuvõtt-Muusika-Pildid'!$C39-'Riided-Vastuvõtt-Muusika-Pildid'!$D39","v":{"v":50,"d":"50.00"}}]
[null,"Teadaanded",{"v":200,"d":"200.00"},{"v":175,"d":"175.00"},{"$f":"'Riided-Vastuvõtt-Muusika-Pildid'!$C40-'Riided-Vastuvõtt-Muusika-Pildid'!$D40","v":{"v":25,"d":"25.00"}}]
[null,"Tänukaardid",{"v":100,"d":"100.00"},{"v":100,"d":"100.00"},{"$f":"'Riided-Vastuvõtt-Muusika-Pildid'!$C41-'Riided-Vastuvõtt-Muusika-Pildid'!$D41","v":{"v":0,"d":"0.00"}}]
[null,"Isiklikud kirjatarbed",{"v":0,"d":"0.00"},{"v":0,"d":"0.00"},{"$f":"'Riided-Vastuvõtt-Muusika-Pildid'!$C42-'Riided-Vastuvõtt-Muusika-Pildid'!$D42","v":{"v":0,"d":"0.00"}}]
[null,"Külalisteraamat",{"v":25,"d":"25.00"},{"v":25,"d":"25.00"},{"$f":"'Riided-Vastuvõtt-Muusika-Pildid'!$C43-'Riided-Vastuvõtt-Muusika-Pildid'!$D43","v":{"v":0,"d":"0.00"}}]
[null,"Kavalehed",{"v":75,"d":"75.00"},{"v":80,"d":"80.00"},{"$f":"'Riided-Vastuvõtt-Muusika-Pildid'!$C44-'Riided-Vastuvõtt-Muusika-Pildid'!$D44","v":{"v":-5,"d":"-5.00 "}}]
[null,"Vastuvõtu salvrätikud",{"v":35,"d":"35.00"},{"v":40,"d":"40.00"},{"$f":"'Riided-Vastuvõtt-Muusika-Pildid'!$C45-'Riided-Vastuvõtt-Muusika-Pildid'!$D45","v":{"v":-5,"d":"-5.00 "}}]
[null,"Tikutoosid",{"v":0,"d":"0.00"},{"v":0,"d":"0.00"},{"$f":"'Riided-Vastuvõtt-Muusika-Pildid'!$C46-'Riided-Vastuvõtt-Muusika-Pildid'!$D46","v":{"v":0,"d":"0.00"}}]
[null,"Kalligraafia",{"v":0,"d":"0.00"},{"v":0,"d":"0.00"},{"$f":"'Riided-Vastuvõtt-Muusika-Pildid'!$C47-'Riided-Vastuvõtt-Muusika-Pildid'!$D47","v":{"v":0,"d":"0.00"}}]
[null,"Printimis-/kirjatarvete kulud kokku",{"$f":"SUBTOTAL(109,Printimine[EELDATAV])","v":{"v":935,"d":"935.00"}},{"$f":"SUBTOTAL(109,Printimine[TEGELIK])","v":{"v":870,"d":"870.00"}},{"$f":"SUBTOTAL(109,Printimine[ÜLE-/ALAKULU])","v":{"v":65,"d":"65.00"}}]
[]
["Paremal asuvas lahtris kuvatakse silt „Fotograafia“.","Fotograafia"]
["Sisestage üksikasjad parempoolsest lahtrist algavasse tabelisse „Fotograafia“.","KATEGOORIA","EELDATAV","TEGELIK","ÜLE-/ALAKULU"]
[null,"Ametlikud pildid",{"v":1300,"d":"1,300.00"},{"v":1300,"d":"1,300.00"},{"$f":"'Riided-Vastuvõtt-Muusika-Pildid'!$C52-'Riided-Vastuvõtt-Muusika-Pildid'!$D52","v":{"v":0,"d":"0.00"}}]
[null,"Lisapildid",{"v":25,"d":"25.00"},{"v":25,"d":"25.00"},{"$f":"'Riided-Vastuvõtt-Muusika-Pildid'!$C53-'Riided-Vastuvõtt-Muusika-Pildid'!$D53","v":{"v":0,"d":"0.00"}}]
[null,"Fotoalbumid",{"v":100,"d":"100.00"},{"v":100,"d":"100.00"},{"$f":"'Riided-Vastuvõtt-Muusika-Pildid'!$C54-'Riided-Vastuvõtt-Muusika-Pildid'!$D54","v":{"v":0,"d":"0.00"}}]
[null,"Videograafia",{"v":200,"d":"200.00"},{"v":150,"d":"150.00"},{"$f":"'Riided-Vastuvõtt-Muusika-Pildid'!$C55-'Riided-Vastuvõtt-Muusika-Pildid'!$D55","v":{"v":50,"d":"50.00"}}]
[null,"Fotograafiakulud kokku",{"$f":"SUBTOTAL(109,Fotograafia[EELDATAV])","v":{"v":1625,"d":"1,625.00"}},{"$f":"SUBTOTAL(109,Fotograafia[TEGELIK])","v":{"v":1575,"d":"1,575.00"}},{"$f":"SUBTOTAL(109,Fotograafia[ÜLE-/ALAKULU])","v":{"v":50,"d":"50.00"}}]

{"sheet":"Kaunistused-Lilled-Kingid-Reis","index":3,"n_rows":48,"n_cols":5,"rows_kept":48,"merged":[[8,1,8,4],[9,1,9,4],[18,1,18,4],[27,1,27,4],[34,1,34,4]]}
["Sisestage selle töölehe vastavatesse tabelitesse eri kategooria lõikes eeldatav ja tegelik kulud. Üle-/alakulu arvutatakse automaatselt. Paremal asuvas lahtris kuvatakse silt „Kaunistused“. Töölehe kasutamise kohta käivad kasulikud juhised leiate selle veeru lahtritest. Alustamiseks liikuge noolega alla.","Kaunistused*"]
["Sisestage paremale jäävast lahtrist algavasse tabelisse kaunistustega seotud kulud (v.a lilledega seotud kulud). Järgmine juhis on lahtris A11.","KATEGOORIA","EELDATAV","TEGELIK","ÜLE-/ALAKULU"]
[null,"Toolilipsud",{"v":0,"d":"0.00"},{"v":0,"d":"0.00"},{"$f":"'Kaunistused-Lilled-Kingid-Reis'!$C3-'Kaunistused-Lilled-Kingid-Reis'!$D3","v":{"v":0,"d":"0.00"}}]
[null,"Kompositsioonid",{"v":300,"d":"300.00"},{"v":320,"d":"320.00"},{"$f":"'Kaunistused-Lilled-Kingid-Reis'!$C4-'Kaunistused-Lilled-Kingid-Reis'!$D4","v":{"v":-20,"d":"-20.00 "}}]
[null,"Küünlad",{"v":100,"d":"100.00"},{"v":75,"d":"75.00"},{"$f":"'Kaunistused-Lilled-Kingid-Reis'!$C5-'Kaunistused-Lilled-Kingid-Reis'!$D5","v":{"v":25,"d":"25.00"}}]
[null,"Valgustus",{"v":100,"d":"100.00"},{"v":75,"d":"75.00"},{"$f":"'Kaunistused-Lilled-Kingid-Reis'!$C6-'Kaunistused-Lilled-Kingid-Reis'!$D6","v":{"v":25,"d":"25.00"}}]
[null,"Õhupallid",{"v":200,"d":"200.00"},{"v":250,"d":"250.00"},{"$f":"'Kaunistused-Lilled-Kingid-Reis'!$C7-'Kaunistused-Lilled-Kingid-Reis'!$D7","v":{"v":-50,"d":"-50.00 "}}]
[null,"Kaunistused kokku",{"$f":"SUBTOTAL(109,Kaunistused[EELDATAV])","v":{"v":700,"d":"700.00"}},{"$f":"SUBTOTAL(109,Kaunistused[TEGELIK])","v":{"v":720,"d":"720.00"}},{"$f":"SUBTOTAL(109,Kaunistused[ÜLE-/ALAKULU])","v":{"v":-20,"d":"-20.00 "}}]
[null,"* Ei hõlma lillekulusid"]
[]
["Paremal asuvas lahtris kuvatakse silt „Lilled“.","Lilled"]
["Sisestage üksikasjad parempoolsest lahtrist algavasse tabelisse „Lilled“. Järgmine juhis on lahtris A20.","KATEGOORIA","EELDATAV","TEGELIK","ÜLE-/ALAKULU"]
[null,"Lillekimbud",{"v":500,"d":"500.00"},{"v":450,"d":"450.00"},{"$f":"'Kaunistused-Lilled-Kingid-Reis'!$C13-'Kaunistused-Lilled-Kingid-Reis'!$D13","v":{"v":50,"d":"50.00"}}]
[null,"Reväärikaunistused",{"v":0,"d":"0.00"},{"v":0,"d":"0.00"},{"$f":"'Kaunistused-Lilled-Kingid-Reis'!$C14-'Kaunistused-Lilled-Kingid-Reis'!$D14","v":{"v":0,"d":"0.00"}}]
[null,"Käekaunistused",{"v":0,"d":"0.00"},{"v":0,"d":"0.00"},{"$f":"'Kaunistused-Lilled-Kingid-Reis'!$C15-'Kaunistused-Lilled-Kingid-Reis'!$D15","v":{"v":0,"d":"0.00"}}]
[null,"Tseremoonia",{"v":400,"d":"400.00"},{"v":400,"d":"400.00"},{"$f":"'Kaunistused-Lilled-Kingid-Reis'!$C16-'Kaunistused-Lilled-Kingid-Reis'!$D16","v":{"v":0,"d":"0.00"}}]
[null,"Vastuvõtt",{"v":0,"d":"0.00"},{"v":0,"d":"0.00"},{"$f":"'Kaunistused-Lilled-Kingid-Reis'!$C17-'Kaunistused-Lilled-Kingid-Reis'!$D17","v":{"v":0,"d":"0.00"}}]
[null,"Lillekulud kokku",{"$f":"SUBTOTAL(109,Lilled[EELDATAV])","v":{"v":900,"d":"900.00"}},{"$f":"SUBTOTAL(109,Lilled[TEGELIK])","v":{"v":850,"d":"850.00"}},{"$f":"SUBTOTAL(109,Lilled[ÜLE-/ALAKULU])","v":{"v":50,"d":"50.00"}}]
[]
["Paremal asuvas lahtris kuvatakse silt „Kingitused“.","Kingitused"]
["Sisestage üksikasjad parempoolsest lahtrist algavasse tabelisse „Kingitused“. Järgmine juhis on lahtris A29.","KATEGOORIA","EELDATAV","TEGELIK","ÜLE-/ALAKULU"]
[null,"Osalejad",{"v":1000,"d":"1,000.00"},{"v":400,"d":"400.00"},{"$f":"'Kaunistused-Lilled-Kingid-Reis'!$C22-'Kaunistused-Lilled-Kingid-Reis'!$D22","v":{"v":600,"d":"600.00"}}]
[null,"Abikaasa 1",{"v":150,"d":"150.00"},{"v":200,"d":"200.00"},{"$f":"'Kaunistused-Lilled-Kingid-Reis'!$C23-'Kaunistused-Lilled-Kingid-Reis'!$D23","v":{"v":-50,"d":"-50.00 "}}]
[null,"Abikaasa 2",{"v":150,"d":"150.00"},{"v":200,"d":"200.00"},{"$f":"'Kaunistused-Lilled-Kingid-Reis'!$C24-'Kaunistused-Lilled-Kingid-Reis'!$D24","v":{"v":-50,"d":"-50.00 "}}]
[null,"Abikaasade vanemad",{"v":25,"d":"25.00"},{"v":25,"d":"25.00"},{"$f":"'Kaunistused-Lilled-Kingid-Reis'!$C25-'Kaunistused-Lilled-Kingid-Reis'!$D25","v":{"v":0,"d":"0.00"}}]
[null,"Jutlustajad/teised osalised",{"v":20,"d":"20.00"},{"v":250,"d":"250.00"},{"$f":"'Kaunistused-Lilled-Kingid-Reis'!$C26-'Kaunistused-Lilled-Kingid-Reis'!$D26","v":{"v":-230,"d":"-230.00 "}}]
[null,"Kingikulud kokku",{"$f":"SUBTOTAL(109,Kingitused[EELDATAV])","v":{"v":1345,"d":"1,345.00"}},{"$f":"SUBTOTAL(109,Kingitused[TEGELIK])","v":{"v":1075,"d":"1,075.00"}},{"$f":"SUBTOTAL(109,Kingitused[ÜLE-/ALAKULU])","v":{"v":270,"d":"270.00"}}]
[]
["Paremal asuvas lahtris kuvatakse silt „Reisimine/transport“.","Reisimine/transport"]
["Sisestage üksikasjad parempoolsest lahtrist algavasse tabelisse „Reisimine“. Järgmine juhis on lahtris A36.","KATEGOORIA","EELDATAV","TEGELIK","ÜLE-/ALAKULU"]
[null,"Limusiinid/vankrid",{"v":100,"d":"100.00"},{"v":125,"d":"125.00"},{"$f":"'Kaunistused-Lilled-Kingid-Reis'!$C31-'Kaunistused-Lilled-Kingid-Reis'!$D31","v":{"v":-25,"d":"-25.00 "}}]
[null,"Parkimine",{"v":0,"d":"0.00"},{"v":40,"d":"40.00"},{"$f":"'Kaunistused-Lilled-Kingid-Reis'!$C32-'Kaunistused-Lilled-Kingid-Reis'!$D32","v":{"v":-40,"d":"-40.00 "}}]
[null,"Taksod",{"v":0,"d":"0.00"},{"v":0,"d":"0.00"},{"$f":"'Kaunistused-Lilled-Kingid-Reis'!$C33-'Kaunistused-Lilled-Kingid-Reis'!$D33","v":{"v":0,"d":"0.00"}}]
[null,"Reisi-/transpordikulud kokku",{"$f":"SUBTOTAL(109,Reisimine[EELDATAV])","v":{"v":100,"d":"100.00"}},{"$f":"SUBTOTAL(109,Reisimine[TEGELIK])","v":{"v":165,"d":"165.00"}},{"$f":"SUBTOTAL(109,Reisimine[ÜLE-/ALAKULU])","v":{"v":-65,"d":"-65.00 "}}]
[]
["Paremal asuvas lahtris kuvatakse silt „Muud kulud“.","Muud kulud"]
["Sisestage üksikasjad parempoolsest lahtrist algavasse tabelisse „Muud kulud“.","KATEGOORIA","EELDATAV","TEGELIK","ÜLE-/ALAKULU"]
[null,"Tseremooniameister",{"v":0,"d":"0.00"},{"v":0,"d":"0.00"},{"$f":"'Kaunistused-Lilled-Kingid-Reis'!$C38-'Kaunistused-Lilled-Kingid-Reis'!$D38","v":{"v":0,"d":"0.00"}}]
[null,"Kiriku/tseremooniakoha tasu",{"v":40,"d":"40.00"},{"v":55,"d":"55.00"},{"$f":"'Kaunistused-Lilled-Kingid-Reis'!$C39-'Kaunistused-Lilled-Kingid-Reis'!$D39","v":{"v":-15,"d":"-15.00 "}}]
[null,"Pulmavanem",{"v":0,"d":"0.00"},{"v":0,"d":"0.00"},{"$f":"'Kaunistused-Lilled-Kingid-Reis'!$C40-'Kaunistused-Lilled-Kingid-Reis'!$D40","v":{"v":0,"d":"0.00"}}]
[null,"Prooviõhtusöök",{"v":450,"d":"450.00"},{"v":450,"d":"450.00"},{"$f":"'Kaunistused-Lilled-Kingid-Reis'!$C41-'Kaunistused-Lilled-Kingid-Reis'!$D41","v":{"v":0,"d":"0.00"}}]
[null,"Kihluspidu",{"v":20,"d":"20.00"},{"v":50,"d":"50.00"},{"$f":"'Kaunistused-Lilled-Kingid-Reis'!$C42-'Kaunistused-Lilled-Kingid-Reis'!$D42","v":{"v":-30,"d":"-30.00 "}}]
[null,"Tüdrukuteõhtud",{"v":30,"d":"30.00"},{"v":20,"d":"20.00"},{"$f":"'Kaunistused-Lilled-Kingid-Reis'!$C43-'Kaunistused-Lilled-Kingid-Reis'!$D43","v":{"v":10,"d":"10.00"}}]
[null,"Salongikülastused",{"v":45,"d":"45.00"},{"v":46,"d":"46.00"},{"$f":"'Kaunistused-Lilled-Kingid-Reis'!$C44-'Kaunistused-Lilled-Kingid-Reis'!$D44","v":{"v":-1,"d":"-1.00 "}}]
[null,"Poissmeestõhtud",{"v":0,"d":"0.00"},{"v":0,"d":"0.00"},{"$f":"'Kaunistused-Lilled-Kingid-Reis'!$C45-'Kaunistused-Lilled-Kingid-Reis'!$D45","v":{"v":0,"d":"0.00"}}]
[null,"Brantš",{"v":300,"d":"300.00"},{"v":400,"d":"400.00"},{"$f":"'Kaunistused-Lilled-Kingid-Reis'!$C46-'Kaunistused-Lilled-Kingid-Reis'!$D46","v":{"v":-100,"d":"-100.00 "}}]
[null,"Hotellitoad",{"v":0,"d":"0.00"},{"v":0,"d":"0.00"},{"$f":"'Kaunistused-Lilled-Kingid-Reis'!$C47-'Kaunistused-Lilled-Kingid-Reis'!$D47","v":{"v":0,"d":"0.00"}}]
[null,"Muud kulud kokku",{"$f":"SUBTOTAL(109,MuudKulud[EELDATAV])","v":{"v":885,"d":"885.00"}},{"$f":"SUBTOTAL(109,MuudKulud[TEGELIK])","v":{"v":1021,"d":"1,021.00"}},{"$f":"SUBTOTAL(109,MuudKulud[ÜLE-/ALAKULU])","v":{"v":-136,"d":"-136.00 "}}]